bitfinex-derivatives/quotes_SOLF0:USTF0_20241105
["timestamp","ask_amount","ask_price","bid_price","bid_amount"]
[1730828149387,3.5,168.14,168.07,2.9753]
[1730828149892,3.5,168.14,168.09,14.2850132]
[1730828150097,1.3084,168.16,168.11,14.2850132]
[1730828150298,2.9738,168.16,168.13,14.2850132]
[1730828150590,3.5,168.21,168.13,14.2850132]
[1730828151491,3.5,168.21,168.12,2.9744]
[1730828151892,3.5,168.21,168.11,22.84430976]
[1730828151893,2.9739,168.16,168.11,22.84430976]
[1730828152599,3.5,168.21,168.09,3.5]
[1730828152896,3.5,168.21,168.11,2.9745]
[1730828153096,2.9735,168.18,168.09,3.5]
[1730828153297,6.49893171,168.21,168.09,3.5]
[1730828154090,2.9743,168.13,168.09,3.5]
[1730828154297,22.84430976,168.19,168.09,3.5]
[1730828154695,2.9746,168.12,168.09,3.5]
[1730828155398,2.9743,168.13,168.09,6.475]
[1730828155803,2.9743,168.13,168.09,3.5]
[1730828156703,2.9745,168.12,168.09,3.5]
[1730828156898,22.84430976,168.19,168.09,3.5]
[1730828157106,6.49893171,168.21,168.09,3.5]
[1730828157404,2.974,168.15,168.09,3.5]
[1730828157699,6.49893171,168.21,168.09,3.5]
[1730828158101,6.49893171,168.21,168.1,2.9747]
[1730828158706,2.9741,168.15,168.1,2.9747]
[1730828160402,6.49893171,168.21,168.1,2.9747]
[1730828160612,2.9742,168.14,168.1,2.9747]
[1730828161200,2.974,168.15,168.11,2.9746]
[1730828161906,6.49893171,168.21,168.09,3.5]
[1730828162200,3.5,168.21,168.09,3.5]
[1730828162599,3.5,168.21,168.12,2.9743]
[1730828162802,3.5,168.21,168.09,3.5]
[1730828163001,2.9735,168.18,168.14,2.9739]
[1730828163202,22.84430976,168.24,168.11,22.84430976]
[1730828163412,3.5,168.23,168.11,22.84430976]
[1730828163603,2.9734,168.19,168.14,2.974]
[1730828164200,2.9735,168.18,168.14,2.974]
[1730828164702,3.5,168.23,168.11,22.84430976]
[1730828164895,2.9736,168.17,168.13,2.9742]
[1730828166204,3.5,168.23,168.11,22.84430976]
[1730828166505,2.9734,168.18,168.14,2.974]
[1730828168203,3.5,168.23,168.14,2.974]
[1730828169005,2.9735,168.18,168.14,2.974]
[1730828169500,2.9734,168.19,168.15,2.9739]
[1730828169711,3.5,168.23,168.11,22.84430976]
[1730828170112,3.5,168.23,168.15,2.9738]
[1730828170313,1.3084,168.25,168.14,26.34430976]
[1730828170513,1.3084,168.25,168.18,2.9733]
[1730828170514,0.96782711,168.24,168.18,2.9733]
[1730828170706,2.9728,168.22,168.18,2.9733]
[1730828170906,1.3084,168.25,168.15,2.5459]
[1730828171407,1.3084,168.25,168.17,2.9736]
[1730828171913,1.3084,168.25,168.16,17.24595008]
[1730828172416,2.973,168.21,168.16,17.24595008]
[1730828172609,1.3084,168.25,168.16,17.24595008]
[1730828172917,2.973,168.21,168.16,17.24595008]
[1730828173408,1.3084,168.25,168.12,1.3283]
[1730828173409,15.58065008,168.25,168.12,1.3283]
[1730828173607,2.9736,168.17,168.14,14.27225008]
[1730828173810,14.27225008,168.23,168.14,14.27225008]
[1730828174110,2.9737,168.17,168.14,14.27225008]
[1730828175509,14.27225008,168.23,168.14,14.27225008]
[1730828175716,14.27225008,168.23,168.12,3.5]
[1730828176315,14.27225008,168.23,168.13,2.9742]
[1730828176815,2.9737,168.17,168.13,2.9743]
[1730828177617,2.9737,168.17,168.13,17.24655008]
[1730828178516,3.5,168.21,168.12,1.3543]
[1730828178709,35.65225008,168.21,168.09,0.2716]
[1730828178909,14.27225008,168.16,168.09,0.2716]
[1730828179214,2.9748,168.1,168.09,0.2716]
[1730828187117,2.9747,168.11,168.09,0.2716]
[1730828188508,2.9748,168.1,168.09,0.2716]
[1730828190821,2.9752,168.09,168.04,2.9759]
[1730828191216,2.9752,168.09,168.05,2.9757]
[1730828191409,2.9752,168.09,168.03,14.27225008]
[1730828192017,2.9752,168.09,168.04,2.9758]
[1730828192212,3.5,168.13,168.03,14.27225008]
[1730828192725,2.9749,168.1,168.06,2.9755]
[1730828192923,3.5,168.13,168.05,14.27225008]
[1730828194023,2.9746,168.12,168.07,2.9752]
[1730828194323,3.5,168.13,168.03,14.27225008]
[1730828194812,2.9753,168.08,168.03,14.27225008]
[1730828195015,3.5,168.13,168.03,14.27225008]
[1730828195422,3.5,168.13,168.06,14.27225008]
[1730828195615,4.791,168.15,168.06,14.27225008]
[1730828195815,2.9748,168.11,168.06,17.24775008]
[1730828196021,4.791,168.15,168.04,14.27225008]
[1730828196709,2.9752,168.09,168.04,17.24805008]
[1730828197520,2.9752,168.09,168.05,2.9757]
[1730828200924,2.9749,168.1,168.06,2.9754]
[1730828201124,4.791,168.15,168.04,14.27225008]
[1730828201626,2.9751,168.09,168.05,2.9756]
[1730828202824,2.9754,168.07,168.04,14.27225008]
[1730828204227,14.27225008,168.14,168.04,14.27225008]
[1730828204722,2.9752,168.08,168.04,17.24805008]
[1730828204921,14.27225008,168.14,168.04,14.27225008]
[1730828205920,2.9752,168.08,168.04,17.24805008]
[1730828208037,2.9751,168.09,168.04,17.24805008]
[1730828208333,14.27225008,168.14,168.05,2.9755]
[1730828208731,14.27225008,168.14,168.04,14.27225008]
[1730828209028,4.791,168.15,168.06,14.27225008]
[1730828209233,2.9746,168.12,168.06,14.27225008]
[1730828209534,2.9746,168.12,168.07,5.5507]
[1730828209729,2.9746,168.12,168.07,2.5755]
[1730828210034,2.9746,168.12,168.08,17.24745008]
[1730828210625,2.9746,168.12,168.08,14.27225008]
[1730828211926,3.5,168.17,168.08,14.27225008]
[1730828212235,2.9743,168.13,168.08,17.24735008]
[1730828213531,2.9745,168.12,168.08,17.24735008]
[1730828216942,2.6969,168.21,168.08,19.12605008]
[1730828216943,17.77225008,168.2,168.08,19.12605008]
[1730828217142,0.96810581,168.19,168.08,19.12605008]
[1730828217537,2.9742,168.14,168.1,2.9748]
[1730828219052,2.9743,168.14,168.09,2.9749]
[1730828219340,14.27225008,168.18,168.08,19.12605008]
[1730828219747,2.9745,168.12,168.08,22.10115008]
[1730828220543,24.98032645,168.18,168.08,19.12605008]
[1730828220744,2.9743,168.13,168.09,2.975]
[1730828221347,2.9746,168.12,168.1,9.14378066]
[1730828224438,2.9746,168.11,168.1,9.14378066]
[1730828225243,9.14378066,168.16,168.1,9.14378066]
[1730828225438,2.9745,168.12,168.1,9.14378066]
[1730828225646,9.14378066,168.16,168.1,9.14378066]
[1730828225839,2.9739,168.16,168.12,9.14378066]
[1730828226047,9.14378066,168.18,168.12,9.14378066]
[1730828226446,2.9741,168.14,168.12,9.14378066]
[1730828226745,9.14378066,168.18,168.12,9.14378066]
[1730828227050,140.82192572,168.57,168.15,9.14378066]
[1730828227051,3.5,168.22,168.15,9.14378066]
[1730828227254,10.73880209,168.2,168.15,9.14378066]
[1730828227545,19.88258275,168.2,168.15,9.14378066]
[1730828227752,9.14378066,168.2,168.15,9.14378066]
[1730828227951,2.9733,168.19,168.15,9.14378066]
[1730828228155,9.14378066,168.2,168.15,9.14378066]
[1730828228743,2.9737,168.17,168.15,9.14378066]
[1730828229742,2.9735,168.18,168.15,9.14378066]
[1730828230650,2.9736,168.17,168.15,9.14378066]
[1730828231548,2.9735,168.18,168.15,9.14378066]
[1730828233148,2.9732,168.2,168.16,9.14378066]
[1730828233550,1.374,168.25,168.13,3.48]
[1730828233551,11.81618822,168.25,168.18,9.14378066]
[1730828233861,19.58596888,168.25,168.2,9.14378066]
[1730828234356,19.58596888,168.25,168.22,9.14378066]
[1730828234357,13.41448822,168.25,168.22,9.14378066]
[1730828234647,9.14378066,168.26,168.2,9.14378066]
[1730828235052,2.9728,168.22,168.2,9.14378066]
[1730828235550,2.9721,168.26,168.2,2.973]
[1730828235747,10.43613997,168.27,168.25,9.14378066]
[1730828235946,10.43613997,168.3,168.26,9.14378066]
[1730828236250,9.14378066,168.33,168.26,9.14378066]
[1730828237051,10.41134685,168.36,168.3,9.14378066]
[1730828237242,33.1110022,168.42,168.3,9.14378066]
[1730828237449,14.26858049,168.4,168.28,17.74858049]
[1730828238057,2.9702,168.37,168.29,2.9713]
[1730828238350,14.26858049,168.4,168.29,2.9713]
[1730828238951,2.9705,168.35,168.29,2.9713]
[1730828239455,2.9704,168.35,168.31,14.26858049]
[1730828241948,3.48,168.41,168.31,14.26858049]
[1730828241949,2.9706,168.34,168.31,14.26858049]
[1730828242155,14.26858049,168.4,168.31,3.48]
[1730828242450,2.9709,168.33,168.28,14.26858049]
[1730828242648,2.9709,168.33,168.29,3.48]
[1730828243250,3.48,168.41,168.29,3.48]
[1730828243451,3.48,168.41,168.3,14.26858049]
[1730828243959,15.64378049,168.42,168.33,14.26858049]
[1730828244353,2.9703,168.36,168.33,14.26858049]
[1730828246557,1.3752,168.42,168.28,14.26858049]
[1730828246558,2.97,168.37,168.28,14.26858049]
[1730828246762,14.26858049,168.41,168.29,3.48]
[1730828247060,2.9707,168.34,168.29,3.48]
[1730828247259,2.97284473,168.4,168.29,3.48]
[1730828247461,14.26858049,168.38,168.29,3.48]
[1730828247654,2.9713,168.31,168.28,14.26858049]
[1730828248055,14.26858049,168.38,168.28,17.74858049]
[1730828248251,2.9712,168.31,168.28,17.74858049]
[1730828248457,14.26858049,168.38,168.28,14.26858049]
[1730828248658,14.26858049,168.36,168.25,6.2056]
[1730828248867,2.9717,168.28,168.25,6.2056]
[1730828249756,2.972,168.26,168.25,1.3808]
[1730828249957,17.74858049,168.34,168.24,3.48]
[1730828250263,14.26858049,168.32,168.21,1.2951]
[1730828250568,17.21122242,168.32,168.21,4.7751]
[1730828251274,1.3135,168.31,168.21,4.7751]
[1730828251767,1.3135,168.31,168.22,0.43408]
[1730828252367,2.9724,168.24,168.22,0.43408]
[1730828252864,1.3135,168.31,168.22,0.43408]
[1730828253866,14.26858049,168.3,168.22,0.43408]
[1730828254264,2.9724,168.24,168.22,0.43408]
[1730828256963,14.26858049,168.3,168.22,0.43408]
[1730828257172,2.9722,168.25,168.22,0.43408]
[1730828258561,2.9723,168.24,168.22,0.43408]
[1730828259265,2.9716,168.29,168.22,14.70266049]
[1730828259459,1.3135,168.31,168.24,14.26858049]
[1730828259770,1.3135,168.31,168.22,14.70266049]
[1730828260271,2.9721,168.26,168.22,14.70266049]
[1730828261369,2.9721,168.26,168.24,9.12865317]
[1730828263073,2.9721,168.26,168.25,9.12865317]
[1730828263568,2.9719,168.27,168.25,9.12865317]
[1730828263964,4.8547,168.36,168.25,9.12865317]
[1730828264174,10.49125317,168.35,168.29,9.12865317]
[1730828264369,9.12865317,168.33,168.28,9.12865317]
[1730828264567,2.9714,168.3,168.24,3.48]
[1730828264767,9.12865317,168.32,168.24,3.48]
[1730828264768,9.12865317,168.32,168.25,9.12865317]
[1730828265074,2.9718,168.27,168.25,9.12865317]
[1730828265370,1.3626,168.35,168.25,9.12865317]
[1730828265578,9.12865317,168.3,168.24,12.60865317]
[1730828265775,9.12865317,168.3,168.22,0.43408]
[1730828265776,2.9725,168.23,168.22,9.56273317]
[1730828266077,9.12865317,168.28,168.22,9.56273317]
[1730828266274,2.9725,168.24,168.22,9.56273317]
[1730828267874,2.9722,168.25,168.22,9.56273317]
[1730828268475,2.9722,168.25,168.24,9.12865317]
[1730828268678,2.972,168.26,168.24,9.12865317]
[1730828268873,2.972,168.26,168.25,9.12865317]
[1730828269072,3.48,168.31,168.25,9.12865317]
[1730828269582,2.9713,168.3,168.27,9.12865317]
[1730828269781,1.3626,168.35,168.27,9.12865317]
[1730828269782,9.12865317,168.34,168.27,9.12865317]
[1730828270372,2.9715,168.29,168.27,9.12865317]
[1730828270574,9.12865317,168.34,168.27,9.12865317]
[1730828270767,9.12865317,168.32,168.27,9.12865317]
[1730828272678,1.3626,168.35,168.29,9.12865317]
[1730828272875,9.12865317,168.39,168.34,9.12865317]
[1730828273076,2.9698,168.39,168.34,9.12865317]
[1730828273277,10.51285317,168.4,168.34,9.12865317]
[1730828274188,2.9704,168.35,168.34,9.12865317]
[1730828275291,2.9704,168.35,168.32,14.26294655]
[1730828277191,2.9706,168.34,168.32,14.26294655]
[1730828279990,2.9706,168.34,168.3,14.26294655]
[1730828284905,14.26294655,168.39,168.28,14.26294655]
[1730828285492,14.26294655,168.36,168.27,3.48]
[1730828286701,14.26294655,168.34,168.25,1.3231]
[1730828286893,1.3171,168.33,168.25,1.3231]
[1730828287299,2.9716,168.28,168.25,1.3231]
[1730828288213,1.3171,168.33,168.24,14.26294655]
[1730828288912,2.9718,168.27,168.24,14.26294655]
[1730828290816,1.3171,168.33,168.24,14.26294655]
[1730828291203,1.3171,168.33,168.26,14.26294655]
[1730828291504,4.7822,168.35,168.26,14.26294655]
[1730828293009,4.7822,168.35,168.05,2.43237531]
[1730828293010,14.26294655,168.27,168.05,2.43237531]
[1730828293206,17.88,168.3,168.14,1.2587]
[1730828293207,14.26294655,168.24,168.14,1.2587]
[1730828293405,14.26294655,168.21,168.14,1.2587]
[1730828293713,17.74294655,168.21,168.14,1.2587]
[1730828294010,2.9735,168.18,168.14,1.2587]
[1730828294206,17.74294655,168.21,168.14,1.2587]
[1730828294410,17.74294655,168.21,168.17,0.34549]
[1730828294811,2.9734,168.18,168.17,0.34549]
[1730828295903,17.74294655,168.21,168.17,0.34549]
[1730828297411,2.9734,168.18,168.17,0.34549]
[1730828299511,14.26294655,168.18,168.08,14.26294655]
[1730828299904,2.9737,168.17,168.11,2.9745]
[1730828300106,3.48,168.18,168.11,2.9745]
[1730828302214,2.9737,168.17,168.11,2.9745]
[1730828303611,2.9738,168.16,168.1,14.26294655]
[1730828303803,2.9738,168.16,168.1,17.23774655]
[1730828304007,3.48,168.18,168.1,14.26294655]
[1730828304408,2.9737,168.17,168.11,2.9746]
[1730828304613,17.74294655,168.18,167.97,42.8]
[1730828304817,14.26294655,168.16,168.05,14.26294655]
[1730828305010,2.9748,168.11,168.05,17.23864655]
[1730828305412,14.26294655,168.16,168.05,17.23864655]
[1730828305712,2.9749,168.1,168.05,17.23864655]
[1730828307114,14.26294655,168.16,168.05,17.23864655]
[1730828307415,2.975,168.09,168.05,17.23864655]
[1730828307618,2.975,168.09,168.06,2.9755]
[1730828308909,14.26294655,168.16,168.05,14.26294655]
[1730828309107,14.26294655,168.16,168.05,17.23864655]
[1730828309508,2.9751,168.09,168.05,17.23864655]
[1730828311213,2.9755,168.07,168.05,14.26294655]
[1730828311526,17.74294655,168.13,168.03,17.23884655]
[1730828311811,17.74294655,168.13,168.02,1.3351]
[1730828312119,17.74294655,168.13,167.98,2.703]
[1730828312120,14.26294655,168.09,167.98,20.44594655]
[1730828312316,3.48,168.08,167.98,20.44594655]
[1730828312811,2.976,168.04,168.0,2.9765]
[1730828314115,3.48,168.08,168.0,2.9765]
[1730828314309,2.9761,168.03,168.0,2.9765]
[1730828314510,3.48,168.08,168.0,2.9765]
[1730828314910,2.9761,168.04,168.0,2.9765]
[1730828316109,2.9761,168.04,168.01,2.9764]
[1730828316310,2.9756,168.06,167.98,16.96594655]
[1730828316510,3.48,168.08,167.98,16.96594655]
[1730828316717,3.48,168.08,168.01,2.9764]
[1730828317017,2.9758,168.05,168.01,2.9764]
[1730828318210,2.9758,168.05,168.02,2.9762]
[1730828320921,2.9758,168.05,168.01,2.9763]
[1730828322323,2.9758,168.05,167.98,16.96594655]
[1730828322622,2.9758,168.05,168.02,2.9761]
[1730828323320,2.9758,168.05,168.01,2.9763]
[1730828323616,2.9758,168.05,168.02,9.14130454]
[1730828324223,2.9758,168.05,168.02,12.11750454]
[1730828324423,2.9757,168.05,168.02,9.14130454]
[1730828325515,3.48,168.08,167.98,2.703]
[1730828325718,9.14130454,168.09,168.03,9.14130454]
[1730828325917,12.62130454,168.09,168.03,9.14130454]
[1730828326120,2.9753,168.08,168.04,2.9758]
[1730828327617,2.9753,168.08,168.03,12.11730454]
[1730828328419,2.9753,168.08,168.04,2.9759]
[1730828328623,12.11640454,168.09,168.04,2.9759]
[1730828330520,9.14130454,168.11,168.06,9.14130454]
[1730828330723,9.14130454,168.11,168.05,9.14130454]
[1730828331127,2.9749,168.1,168.05,12.11690454]
[1730828332625,3.48,168.12,168.05,12.11690454]
[1730828332626,12.11650454,168.09,168.05,9.14130454]
[1730828332829,9.14130454,168.09,168.03,9.14130454]
[1730828333017,3.48,168.12,168.03,9.14130454]
[1730828333222,9.14130454,168.09,168.03,9.14130454]
[1730828333423,12.11640454,168.09,168.03,9.14130454]
[1730828333822,9.14130454,168.09,168.05,2.9756]
[1730828334021,9.14130454,168.09,168.04,9.14130454]
[1730828334223,9.14130454,168.11,168.04,9.14130454]
[1730828334519,12.11610454,168.11,168.04,9.14130454]
[1730828334727,12.11610454,168.11,168.06,2.9755]
[1730828335528,12.11610454,168.11,168.07,2.9752]
[1730828336525,12.11610454,168.11,168.06,2.9755]
[1730828338125,9.14130454,168.11,168.06,2.9755]
[1730828338325,2.9748,168.1,168.06,2.9755]
[1730828338533,9.14130454,168.11,168.06,2.9755]
[1730828338829,9.14130454,168.14,168.08,9.14130454]
[1730828339033,9.14130454,168.14,168.07,9.14130454]
[1730828339233,9.14130454,168.11,168.06,9.14130454]
[1730828339729,12.11600454,168.11,168.06,12.11680454]
[1730828340830,9.14130454,168.11,168.06,12.11680454]
[1730828341130,2.9748,168.1,168.06,12.11680454]
[1730828341325,2.9748,168.1,168.06,2.9755]
[1730828341525,3.48,168.15,168.05,15.63747276]
[1730828341526,2.9746,168.12,168.05,15.63747276]
[1730828342330,3.48,168.15,168.05,15.63747276]
[1730828342527,2.7377,168.17,168.07,14.27627276]
[1730828342528,6.2177,168.17,168.07,14.27627276]
[1730828343127,1.3506,168.17,168.07,14.27627276]
[1730828343331,1.3506,168.17,168.07,17.75627276]
[1730828343633,2.9739,168.16,168.11,2.9746]
[1730828348638,17.75627276,168.18,168.07,17.75627276]
[1730828348838,2.5925,168.22,168.07,17.75627276]
[1730828348839,14.27627276,168.2,168.1,14.27627276]
[1730828349130,3.46,168.23,168.14,14.27627276]
[1730828349637,1.3866,168.24,168.14,14.27627276]
[1730828349835,1.3866,168.24,168.16,2.9736]
[1730828349836,2.9729,168.21,168.16,2.9736]
[1730828350834,39.32076184,168.34,168.22,2.9725]
[1730828351031,14.27627276,168.3,168.2,14.27627276]
[1730828351428,2.972,168.26,168.2,17.24927276]
[1730828352227,2.9718,168.28,168.2,14.27627276]
[1730828352441,2.9718,168.28,168.21,2.5828]
[1730828352735,2.972,168.27,168.21,5.5557]
[1730828352940,2.972,168.27,168.21,2.5828]
[1730828353437,2.972,168.27,168.22,2.9727]
[1730828354736,2.9714,168.3,168.24,2.9722]
[1730828354936,2.9714,168.3,168.25,14.27627276]
[1730828355638,2.5582,168.36,168.25,14.27627276]
[1730828355835,2.9708,168.33,168.28,2.9716]
[1730828356028,2.9708,168.33,168.27,14.27627276]
[1730828356029,14.27627276,168.38,168.29,3.46]
[1730828356341,1.2568,168.39,168.3,2.9712]
[1730828356546,17.73627276,168.4,168.29,17.73627276]
[1730828357543,2.9707,168.34,168.29,17.73627276]
[1730828357748,14.27627276,168.38,168.29,3.46]
[1730828358039,2.5582,168.41,168.31,14.27627276]
[1730828358238,2.9699,168.38,168.34,14.27627276]
[1730828358841,2.5582,168.41,168.34,14.27627276]
[1730828359040,2.9697,168.39,168.34,14.27627276]
[1730828359449,2.9697,168.39,168.34,17.73627276]
[1730828360042,2.97,168.38,168.34,17.73627276]
[1730828360444,2.97,168.38,168.34,3.46]
[1730828361349,1.2771,168.41,168.34,3.46]
[1730828361649,14.27627276,168.39,168.32,3.46]
[1730828361846,14.27627276,168.39,168.3,15.64667276]
[1730828362051,14.27627276,168.39,168.3,14.27627276]
[1730828362245,14.27627276,168.39,168.3,17.73627276]
[1730828362546,2.9703,168.36,168.3,17.73627276]
[1730828362743,14.27627276,168.39,168.3,17.73627276]
[1730828363146,2.9705,168.35,168.3,17.73627276]
[1730828365141,1.2771,168.41,168.3,17.73627276]
[1730828365142,2.9704,168.36,168.3,20.70757276]
[1730828365547,1.2771,168.41,168.32,14.27627276]
[1730828366254,2.9703,168.36,168.32,14.27627276]
[1730828366850,2.9701,168.37,168.32,14.27627276]
[1730828367672,1.2771,168.41,168.32,14.27627276]
[1730828368165,1.2771,168.41,168.23,7.8106]
[1730828368166,2.9716,168.29,168.23,7.8106]
[1730828368363,2.9716,168.29,168.23,20.48377276]
[1730828368570,6.41288087,168.36,168.23,20.48377276]
[1730828368769,2.9718,168.28,168.23,23.45627276]
[1730828369067,14.27627276,168.35,168.24,1.3516]
[1730828369664,2.9714,168.3,168.25,2.972]
[1730828369860,14.27627276,168.33,168.24,1.3516]
[1730828370268,2.9716,168.29,168.24,4.3238]
[1730828370566,14.27627276,168.33,168.24,1.3516]
[1730828370767,2.9712,168.31,168.24,4.3239]
[1730828370963,14.27627276,168.33,168.24,4.3239]
[1730828371672,1.3242,168.34,168.25,2.9721]
[1730828372170,2.9714,168.3,168.25,2.9721]
[1730828372863,1.3242,168.34,168.25,2.9721]
[1730828373169,2.9715,168.29,168.24,1.3516]
[1730828373371,14.27627276,168.33,168.24,1.3516]
[1730828373568,2.9718,168.27,168.24,1.3516]
[1730828374262,2.9717,168.28,168.24,1.3516]
[1730828375267,2.9717,168.28,168.24,4.3239]
[1730828376560,14.27627276,168.33,168.24,1.3516]
[1730828377970,2.9717,168.28,168.24,1.3516]
[1730828378165,14.27627276,168.33,168.24,1.3516]
[1730828378366,15.63617276,168.33,168.23,9.18]
[1730828379365,2.9716,168.28,168.23,9.18]
[1730828380167,15.63617276,168.33,168.23,9.18]
[1730828380569,15.63617276,168.33,168.23,6.2075]
[1730828380872,2.9723,168.25,168.2,17.73627276]
[1730828381073,14.27627276,168.3,168.2,17.73627276]
[1730828381267,14.27627276,168.3,168.2,17.24917276]
[1730828381671,14.27627276,168.3,168.2,14.27627276]
[1730828382872,3.46,168.31,168.22,14.27627276]
[1730828383776,2.9716,168.29,168.22,17.24887276]
[1730828383973,3.46,168.31,168.22,17.24887276]
[1730828384671,17.73627276,168.31,168.2,17.73627276]
[1730828385570,2.9722,168.25,168.21,2.9728]
[1730828385783,17.73627276,168.31,168.2,14.27627276]
[1730828386077,2.9723,168.25,168.2,20.70927276]
[1730828386269,17.73627276,168.31,168.2,17.73627276]
[1730828386466,17.73627276,168.31,168.2,3.46]
[1730828386467,2.9725,168.24,168.2,3.46]
[1730828388078,2.9725,168.24,168.2,20.70927276]
[1730828388682,2.9725,168.24,168.2,17.73627276]
[1730828391582,17.73627276,168.31,168.2,17.73627276]
[1730828391583,2.9725,168.23,168.2,17.73627276]
[1730828392379,15.63617276,168.33,168.2,17.73627276]
[1730828392575,19.09617276,168.33,168.22,14.27627276]
[1730828392969,2.9723,168.25,168.21,2.9727]
[1730828393671,2.9726,168.23,168.2,20.70927276]
[1730828394581,14.27627276,168.31,168.2,17.73627276]
[1730828394782,2.9725,168.24,168.21,2.9729]
[1730828395479,14.27627276,168.31,168.23,2.9725]
[1730828395480,2.9721,168.26,168.23,2.9725]
[1730828395685,2.9721,168.26,168.2,17.73627276]
[1730828395984,22.6999,168.33,168.2,17.73627276]
[1730828395985,36.97617276,168.33,168.2,17.73627276]
[1730828396180,36.97617276,168.33,168.22,14.27627276]
[1730828396679,33.51617276,168.33,168.23,2.9724]
[1730828396985,15.63617276,168.33,168.22,14.27627276]
[1730828397678,15.63617276,168.33,168.24,2.9723]
[1730828397884,15.63617276,168.33,168.22,14.27627276]
[1730828398076,1.3599,168.33,168.25,14.27627276]
[1730828399480,1.3599,168.33,168.26,3.46]
[1730828400392,2.9712,168.31,168.26,6.432]
[1730828400582,2.9712,168.31,168.26,3.46]
[1730828401185,2.9712,168.31,168.26,6.4319]
[1730828401678,1.3242,168.34,168.26,3.46]
[1730828401880,15.60047276,168.34,168.26,3.46]
[1730828402081,15.60047276,168.34,168.24,3.46]
[1730828402389,2.9715,168.29,168.24,6.4322]
[1730828402586,15.60047276,168.34,168.24,6.4322]
[1730828402983,2.9716,168.29,168.24,6.4322]
[1730828403283,15.60047276,168.34,168.24,6.4322]
[1730828403477,2.972,168.27,168.24,3.46]
[1730828403681,15.60047276,168.34,168.24,3.46]
[1730828404081,2.9711,168.31,168.24,3.46]
[1730828404385,15.60047276,168.34,168.24,3.46]
[1730828404782,2.9711,168.31,168.25,2.972]
[1730828404986,1.3242,168.34,168.25,14.27627276]
[1730828405491,2.9712,168.31,168.26,2.9719]
[1730828405890,2.9712,168.31,168.25,16.89867276]
[1730828406585,2.9712,168.31,168.26,2.9719]
[1730828408676,2.9713,168.3,168.26,2.9719]
[1730828408978,1.3242,168.34,168.25,16.89867276]
[1730828409184,1.3242,168.34,168.27,2.9718]
[1730828409492,1.3242,168.34,168.25,16.89867276]
[1730828409691,15.60047276,168.34,168.25,1.2917]
[1730828409892,2.9718,168.28,168.24,3.46]
[1730828410483,2.9719,168.27,168.24,3.46]
[1730828411084,2.972,168.26,168.24,3.46]
[1730828413983,2.972,168.26,168.23,17.24867276]
[1730828416394,1.3242,168.34,168.25,14.27627276]
[1730828416582,1.3242,168.34,168.25,17.71627276]
[1730828418100,2.9711,168.32,168.27,2.9718]
[1730828418294,1.3242,168.34,168.27,2.9718]
[1730828418597,2.9721,168.26,168.23,17.71627276]
[1730828418792,14.27627276,168.32,168.23,17.71627276]
[1730828419190,2.9718,168.27,168.23,17.71627276]
[1730828419696,2.9718,168.27,168.23,3.44]
[1730828421096,2.9718,168.27,168.23,6.4124]
[1730828423497,1.3242,168.34,168.25,2.9721]
[1730828423498,2.9716,168.29,168.25,2.9721]
[1730828424288,15.60047276,168.34,168.25,14.27627276]
[1730828424491,19.04047276,168.34,168.25,14.27627276]
[1730828424997,2.9715,168.29,168.26,2.9719]
[1730828427599,19.04047276,168.34,168.23,17.71627276]
[1730828428295,2.9716,168.29,168.25,2.972]
[1730828428799,14.27627276,168.32,168.23,17.71627276]
[1730828429099,14.27627276,168.32,168.23,3.44]
[1730828429400,4.7642,168.34,168.21,2.9728]
[1730828429401,2.9722,168.25,168.21,2.9728]
[1730828430997,2.9724,168.24,168.21,2.9728]
[1730828435411,2.9724,168.24,168.22,9.13002647]
[1730828435710,2.9724,168.24,168.22,12.10272647]
[1730828436497,2.9722,168.25,168.22,12.10272647]
[1730828438107,2.9722,168.25,168.21,12.10272647]
[1730828438607,2.9722,168.25,168.21,12.00272647]
[1730828440316,9.13002647,168.27,168.21,9.13002647]
[1730828440508,2.9721,168.26,168.21,9.13002647]